[Event "*** SCC Grand Prix: Titled Tuesday Blitz"]
[Site "Chess.com"]
[Date "2020.07.14"]
[Round "6"]
[White "Quiet_Desperation"]
[Black "mr65"]
[Result "1-0"]
[WhiteElo "2231"]
[BlackElo "2089"]
[TimeControl "180+1"]
[EndTime "11:06:10 PDT"]
[Termination "Quiet_Desperation won by resignation"]

1. e4 {[%clk 0:03:00.9]} 1... e5 {[%clk 0:02:46]} 2. Nf3 {[%clk 0:03:00]} 2...
Nc6 {[%clk 0:02:43.6]} 3. Bb5 {[%clk 0:02:59.6]} 3... a6 {[%clk 0:02:42.9]} 4.
Ba4 {[%clk 0:02:59.7]} 4... Nf6 {[%clk 0:02:42.1]} 5. d3 {[%clk 0:02:59.9]} 5...
b5 {[%clk 0:02:40.5]} 6. Bb3 {[%clk 0:02:59.8]} 6... Be7 {[%clk 0:02:40.6]} 7.
c3 {[%clk 0:02:59.9]} 7... d6 {[%clk 0:02:39.6]} 8. O-O {[%clk 0:02:59.2]} 8...
O-O {[%clk 0:02:39]} 9. Re1 {[%clk 0:02:59.7]} 9... Be6 {[%clk 0:02:36.7]} 10.
Nbd2 {[%clk 0:02:58.6]} 10... Bxb3 {[%clk 0:02:35.1]} 11. axb3 {[%clk
0:02:58.4]} 11... b4 {[%clk 0:02:34.2]} 12. Nf1 {[%clk 0:02:58]} 12... a5 {[%clk
0:02:27.8]} 13. Ng3 {[%clk 0:02:58.2]} 13... g6 {[%clk 0:02:26.2]} 14. Bh6
{[%clk 0:02:57.5]} 14... Re8 {[%clk 0:02:25.5]} 15. h3 {[%clk 0:02:50.5]} 15...
Bf8 {[%clk 0:02:25.1]} 16. Qd2 {[%clk 0:02:50.5]} 16... Nd7 {[%clk 0:02:09.5]}
17. Nh2 {[%clk 0:02:30.4]} 17... Bxh6 {[%clk 0:02:04.6]} 18. Qxh6 {[%clk
0:02:29.7]} 18... Qf6 {[%clk 0:02:04]} 19. Ng4 {[%clk 0:02:23]} 19... Qg7 {[%clk
0:02:03.6]} 20. Qd2 {[%clk 0:02:20.8]} 20... h5 {[%clk 0:01:56.4]} 21. Nh2
{[%clk 0:02:20.5]} 21... Nc5 {[%clk 0:01:54.8]} 22. Qc2 {[%clk 0:02:13.6]} 22...
h4 {[%clk 0:01:45.9]} 23. Ne2 {[%clk 0:02:08.5]} 23... Ne6 {[%clk 0:01:42.4]}
24. Rf1 {[%clk 0:02:02.1]} 24... Nf4 {[%clk 0:01:35.3]} 25. Qd2 {[%clk 0:01:58]}
25... Nxe2+ {[%clk 0:01:29.7]} 26. Qxe2 {[%clk 0:01:57.6]} 26... Nd8 {[%clk
0:01:17.5]} 27. Qg4 {[%clk 0:01:57.2]} 27... Ne6 {[%clk 0:01:15.6]} 28. Qxh4
{[%clk 0:01:56]} 28... Nf4 {[%clk 0:01:11.6]} 29. Rad1 {[%clk 0:01:51]} 29... f6
{[%clk 0:01:09.1]} 30. Qg4 {[%clk 0:01:41.8]} 30... Rf8 {[%clk 0:01:00.3]} 31.
g3 {[%clk 0:01:41.2]} 31... Nh5 {[%clk 0:00:45.4]} 32. cxb4 {[%clk 0:01:34.7]}
32... axb4 {[%clk 0:00:38.8]} 33. Ra1 {[%clk 0:01:34.4]} 33... Kh7 {[%clk
0:00:35.5]} 34. Rfc1 {[%clk 0:01:30.6]} 34... c5 {[%clk 0:00:33]} 35. Nf1 {[%clk
0:01:26.6]} 35... Qf7 {[%clk 0:00:18.8]} 36. Nd2 {[%clk 0:01:26.2]} 36... f5
{[%clk 0:00:18.1]} 37. exf5 {[%clk 0:01:23.7]} 37... gxf5 {[%clk 0:00:17.6]} 38.
Qf3 {[%clk 0:01:19.9]} 38... Qg6 {[%clk 0:00:13.9]} 39. Rxa8 {[%clk 0:01:18.3]}
39... Rxa8 {[%clk 0:00:13.2]} 40. Qxa8 {[%clk 0:01:18.4]} 40... Nxg3 {[%clk
0:00:13.1]} 41. fxg3 {[%clk 0:01:17]} 41... Qxg3+ {[%clk 0:00:12.9]} 42. Qg2
{[%clk 0:01:17]} 1-0

[Event "*** SCC Grand Prix: Titled Tuesday Blitz"]
[Site "Chess.com"]
[Date "2020.07.14"]
[Round "6"]
[White "JosefineHeinemann"]
[Black "Rytenko_V"]
[Result "1-0"]
[WhiteElo "2644"]
[BlackElo "2468"]
[TimeControl "180+1"]
[EndTime "11:06:12 PDT"]
[Termination "JosefineHeinemann won by resignation"]

1. d4 {[%clk 0:03:00.9]} 1... Nf6 {[%clk 0:02:53.4]} 2. c4 {[%clk 0:03:01.1]}
2... g6 {[%clk 0:02:52.6]} 3. g3 {[%clk 0:03:00.5]} 3... Bg7 {[%clk 0:02:53.1]}
4. Bg2 {[%clk 0:02:59.3]} 4... O-O {[%clk 0:02:54]} 5. e4 {[%clk 0:02:56.7]}
5... c5 {[%clk 0:02:54.1]} 6. d5 {[%clk 0:02:54.1]} 6... b5 {[%clk 0:02:52.6]}
7. e5 {[%clk 0:02:49.6]} 7... Ne8 {[%clk 0:02:51.6]} 8. d6 {[%clk 0:02:45.9]}
8... Nc6 {[%clk 0:02:34]} 9. cxb5 {[%clk 0:02:44.2]} 9... Qa5+ {[%clk
0:02:18.6]} 10. Nc3 {[%clk 0:02:42.6]} 10... Nxe5 {[%clk 0:01:38.7]} 11. dxe7
{[%clk 0:02:37.6]} 11... c4 {[%clk 0:01:01.4]} 12. Bxa8 {[%clk 0:02:31.4]} 12...
Nd3+ {[%clk 0:00:59.7]} 13. Kf1 {[%clk 0:02:27.9]} 13... Nc7 {[%clk 0:00:43.9]}
14. exf8=Q+ {[%clk 0:02:15.6]} 14... Kxf8 {[%clk 0:00:43.8]} 15. Bf3 {[%clk
0:02:13.7]} 15... d5 {[%clk 0:00:44]} 16. Nge2 {[%clk 0:02:00.4]} 16... d4
{[%clk 0:00:27.6]} 17. Qa4 {[%clk 0:01:57.7]} 17... Qb6 {[%clk 0:00:18.9]} 18.
Nd5 {[%clk 0:01:53.4]} 18... Nxd5 {[%clk 0:00:13.5]} 19. Bxd5 {[%clk 0:01:54.3]}
19... Bh3+ {[%clk 0:00:12.9]} 20. Kg1 {[%clk 0:01:44]} 20... c3 {[%clk
0:00:04.2]} 21. bxc3 {[%clk 0:01:40.8]} 21... dxc3 {[%clk 0:00:03.8]} 22. Be3
{[%clk 0:01:41.4]} 22... Qd6 {[%clk 0:00:02.8]} 23. Qxa7 {[%clk 0:01:36.6]}
23... Qxd5 {[%clk 0:00:02.2]} 24. Qb8+ {[%clk 0:01:31.1]} 24... Ke7 {[%clk
0:00:02.7]} 25. Qc7+ {[%clk 0:01:31.4]} 25... Ke6 {[%clk 0:00:02.9]} 26. Qc8+
{[%clk 0:01:23.2]} 26... Ke7 {[%clk 0:00:02.1]} 27. Qxh3 {[%clk 0:01:23.7]}
27... c2 {[%clk 0:00:02.6]} 28. Rf1 {[%clk 0:01:18.8]} 28... Ne5 {[%clk
0:00:02.6]} 29. Nd4 {[%clk 0:01:15.3]} 29... Nf3+ {[%clk 0:00:02.2]} 30. Nxf3
{[%clk 0:01:14.4]} 30... Qxf3 {[%clk 0:00:03.1]} 31. Bc5+ {[%clk 0:01:10.3]}
31... Kf6 {[%clk 0:00:02.7]} 32. Bd4+ {[%clk 0:01:06.4]} 32... Ke7 {[%clk
0:00:02.2]} 1-0

[Event "*** SCC Grand Prix: Titled Tuesday Blitz"]
[Site "Chess.com"]
[Date "2020.07.14"]
[Round "6"]
[White "dodorox"]
[Black "northridgehawk"]
[Result "0-1"]
[WhiteElo "2134"]
[BlackElo "2357"]
[TimeControl "180+1"]
[EndTime "11:06:16 PDT"]
[Termination "northridgehawk won on time"]

1. d4 {[%clk 0:03:00.9]} 1... Nf6 {[%clk 0:02:58.6]} 2. c4 {[%clk 0:03:00.5]}
2... g6 {[%clk 0:02:57.9]} 3. Nc3 {[%clk 0:03:00.5]} 3... d5 {[%clk 0:02:37.9]}
4. Bf4 {[%clk 0:02:59.5]} 4... Bg7 {[%clk 0:02:37.2]} 5. e3 {[%clk 0:02:59.2]}
5... O-O {[%clk 0:02:36.5]} 6. Rc1 {[%clk 0:02:58.2]} 6... Be6 {[%clk
0:02:36.2]} 7. c5 {[%clk 0:02:46.2]} 7... c6 {[%clk 0:02:34.9]} 8. Nf3 {[%clk
0:02:44.6]} 8... Bg4 {[%clk 0:02:34.3]} 9. Be2 {[%clk 0:02:41.8]} 9... Bxf3
{[%clk 0:02:35.2]} 10. Bxf3 {[%clk 0:02:41.6]} 10... Nfd7 {[%clk 0:02:36.1]} 11.
Bg5 {[%clk 0:02:26]} 11... h6 {[%clk 0:02:26.2]} 12. Bh4 {[%clk 0:02:25.4]}
12... g5 {[%clk 0:02:25.6]} 13. Bg3 {[%clk 0:02:25.6]} 13... e5 {[%clk
0:02:26.5]} 14. dxe5 {[%clk 0:02:15.1]} 14... Nxe5 {[%clk 0:02:27.4]} 15. O-O
{[%clk 0:02:03.1]} 15... Nbd7 {[%clk 0:02:24.8]} 16. Bxe5 {[%clk 0:01:13.8]}
16... Nxe5 {[%clk 0:02:17.9]} 17. Be2 {[%clk 0:01:04.3]} 17... a5 {[%clk
0:02:17.4]} 18. Qd2 {[%clk 0:00:42.9]} 18... Nd7 {[%clk 0:02:14.7]} 19. Na4
{[%clk 0:00:40.6]} 19... Qe7 {[%clk 0:02:14]} 20. Bd3 {[%clk 0:00:28.6]} 20...
Rfe8 {[%clk 0:02:12.5]} 21. Rfe1 {[%clk 0:00:23.2]} 21... Nf6 {[%clk 0:01:53.9]}
22. Nb6 {[%clk 0:00:21]} 22... Rad8 {[%clk 0:01:47.5]} 23. Qxa5 {[%clk
0:00:19.4]} 23... Ng4 {[%clk 0:01:46]} 24. h3 {[%clk 0:00:16.3]} 24... Ne5
{[%clk 0:01:43.9]} 25. Bf1 {[%clk 0:00:16.4]} 25... f5 {[%clk 0:01:39.3]} 26.
Qd2 {[%clk 0:00:13.7]} 26... Ng6 {[%clk 0:01:33]} 27. b4 {[%clk 0:00:12.7]}
27... Kh8 {[%clk 0:01:29.4]} 28. a4 {[%clk 0:00:12.5]} 28... Qf6 {[%clk
0:01:28.4]} 29. b5 {[%clk 0:00:10]} 29... f4 {[%clk 0:01:27.2]} 30. exf4 {[%clk
0:00:08.6]} 30... Nxf4 {[%clk 0:01:26.5]} 31. bxc6 {[%clk 0:00:05.6]} 31... bxc6
{[%clk 0:01:26.4]} 32. a5 {[%clk 0:00:04.1]} 32... h5 {[%clk 0:01:12.7]} 33. a6
{[%clk 0:00:04.3]} 33... Bh6 {[%clk 0:01:13]} 34. Rxe8+ {[%clk 0:00:03.6]} 34...
Rxe8 {[%clk 0:01:12.4]} 35. a7 {[%clk 0:00:04.2]} 35... g4 {[%clk 0:01:12.4]}
36. a8=Q {[%clk 0:00:04.5]} 36... Rxa8 {[%clk 0:01:11.7]} 37. Qc2 {[%clk
0:00:02.7]} 37... Rg8 {[%clk 0:01:10]} 0-1

[Event "*** SCC Grand Prix: Titled Tuesday Blitz"]
[Site "Chess.com"]
[Date "2020.07.14"]
[Round "6"]
[White "AttackSparrow"]
[Black "cottage_cheese"]
[Result "1-0"]
[WhiteElo "2309"]
[BlackElo "2155"]
[TimeControl "180+1"]
[EndTime "11:06:18 PDT"]
[Termination "AttackSparrow won by checkmate"]

1. e4 {[%clk 0:02:55.6]} 1... e6 {[%clk 0:02:59.7]} 2. d4 {[%clk 0:02:47.6]}
2... d5 {[%clk 0:03:00.1]} 3. Bd3 {[%clk 0:02:46.3]} 3... dxe4 {[%clk
0:02:59.1]} 4. Bxe4 {[%clk 0:02:47.2]} 4... Nf6 {[%clk 0:02:58.6]} 5. Bf3 {[%clk
0:02:46.8]} 5... c5 {[%clk 0:02:58.7]} 6. Ne2 {[%clk 0:02:46.1]} 6... Nc6 {[%clk
0:02:57.9]} 7. Be3 {[%clk 0:02:43]} 7... e5 {[%clk 0:02:52.6]} 8. Bxc6+ {[%clk
0:02:34.6]} 8... bxc6 {[%clk 0:02:53.5]} 9. dxe5 {[%clk 0:02:34.9]} 9... Qxd1+
{[%clk 0:02:52.9]} 10. Kxd1 {[%clk 0:02:35.8]} 10... Ng4 {[%clk 0:02:52.4]} 11.
Nd2 {[%clk 0:02:36.1]} 11... Nxe5 {[%clk 0:02:44.9]} 12. Re1 {[%clk 0:02:33.4]}
12... f6 {[%clk 0:02:36.2]} 13. Nc3 {[%clk 0:02:20.9]} 13... Rb8 {[%clk
0:02:31.8]} 14. f4 {[%clk 0:02:19.5]} 14... Ng4 {[%clk 0:02:16.3]} 15. Bxc5+
{[%clk 0:02:18.6]} 15... Kf7 {[%clk 0:02:15.8]} 16. Bxf8 {[%clk 0:02:15.5]}
16... Rxf8 {[%clk 0:02:16.7]} 17. h3 {[%clk 0:02:13.4]} 17... Nh6 {[%clk
0:02:07.4]} 18. Nb3 {[%clk 0:02:09.6]} 18... Nf5 {[%clk 0:02:00.1]} 19. Ke2
{[%clk 0:02:00.4]} 19... c5 {[%clk 0:01:47.3]} 20. Rab1 {[%clk 0:01:45.5]} 20...
c4 {[%clk 0:01:44.1]} 21. Nd2 {[%clk 0:01:42.6]} 21... Nd4+ {[%clk 0:01:42]} 22.
Kf2 {[%clk 0:01:42.8]} 22... Nxc2 {[%clk 0:01:28.1]} 23. Rec1 {[%clk 0:01:42.5]}
23... Bf5 {[%clk 0:01:27.3]} 24. Nxc4 {[%clk 0:01:40.1]} 24... Rfd8 {[%clk
0:01:14.3]} 25. g4 {[%clk 0:01:35.1]} 25... Bd3 {[%clk 0:01:08.7]} 26. Na5
{[%clk 0:01:31.6]} 26... Nb4 {[%clk 0:00:54]} 27. Ra1 {[%clk 0:01:30.5]} 27...
Nc2 {[%clk 0:00:53.8]} 28. Nc6 {[%clk 0:01:21.3]} 28... Nxa1 {[%clk 0:00:38.7]}
29. Nxd8+ {[%clk 0:01:17.8]} 29... Rxd8 {[%clk 0:00:39.6]} 30. Rxa1 {[%clk
0:01:18]} 30... Bc2 {[%clk 0:00:37.3]} 31. Rc1 {[%clk 0:01:15.9]} 31... Rd2+
{[%clk 0:00:37.1]} 32. Ke3 {[%clk 0:01:16.4]} 32... Rh2 {[%clk 0:00:36.8]} 33.
Kd4 {[%clk 0:01:11.8]} 33... h5 {[%clk 0:00:32.8]} 34. gxh5 {[%clk 0:01:10.5]}
34... Bh7 {[%clk 0:00:32.5]} 35. b4 {[%clk 0:01:07.2]} 35... Rxh3 {[%clk
0:00:31.5]} 36. Nd5 {[%clk 0:01:07.7]} 36... Ra3 {[%clk 0:00:22.4]} 37. Rc7+
{[%clk 0:01:07.2]} 37... Kf8 {[%clk 0:00:18]} 38. h6 {[%clk 0:01:04.7]} 38...
Rd3+ {[%clk 0:00:17.5]} 39. Kc5 {[%clk 0:01:03.4]} 39... Be4 {[%clk 0:00:15.3]}
40. hxg7+ {[%clk 0:01:02.7]} 40... Kg8 {[%clk 0:00:14.1]} 41. Nxf6# {[%clk
0:01:03.6]} 1-0

[Event "*** SCC Grand Prix: Titled Tuesday Blitz"]
[Site "Chess.com"]
[Date "2020.07.14"]
[Round "6"]
[White "Zubrrr"]
[Black "Lector118"]
[Result "0-1"]
[WhiteElo "2632"]
[BlackElo "2500"]
[TimeControl "180+1"]
[EndTime "11:06:19 PDT"]
[Termination "Lector118 won by resignation"]

1. e4 {[%clk 0:02:57.2]} 1... e5 {[%clk 0:02:57.8]} 2. f4 {[%clk 0:02:56.8]}
2... d5 {[%clk 0:02:57]} 3. exd5 {[%clk 0:02:56.2]} 3... exf4 {[%clk 0:02:56.6]}
4. Nf3 {[%clk 0:02:55.6]} 4... c6 {[%clk 0:02:57.2]} 5. d4 {[%clk 0:02:49.6]}
5... Bd6 {[%clk 0:02:52.9]} 6. dxc6 {[%clk 0:02:35.8]} 6... Nxc6 {[%clk
0:02:51.7]} 7. Bd3 {[%clk 0:02:22.2]} 7... Nge7 {[%clk 0:02:49.5]} 8. O-O {[%clk
0:02:21.6]} 8... O-O {[%clk 0:02:49.2]} 9. c3 {[%clk 0:02:17.4]} 9... Re8 {[%clk
0:02:40.1]} 10. Bxh7+ {[%clk 0:01:28.5]} 10... Kxh7 {[%clk 0:02:24]} 11. Ng5+
{[%clk 0:01:28.4]} 11... Kg8 {[%clk 0:01:58.8]} 12. Qh5 {[%clk 0:01:27.5]} 12...
Ng6 {[%clk 0:01:57.1]} 13. Bxf4 {[%clk 0:01:09]} 13... Bxf4 {[%clk 0:01:42.9]}
14. Rxf4 {[%clk 0:00:56.4]} 14... Nxf4 {[%clk 0:01:40.8]} 15. Qxf7+ {[%clk
0:00:50.2]} 15... Kh8 {[%clk 0:01:40.6]} 16. Qxf4 {[%clk 0:00:44.6]} 16... Qf6
{[%clk 0:00:42.8]} 17. Qh4+ {[%clk 0:00:43.9]} 17... Kg8 {[%clk 0:00:43.4]} 18.
Nd2 {[%clk 0:00:16.4]} 18... Bf5 {[%clk 0:00:42.9]} 19. Rf1 {[%clk 0:00:15.6]}
19... Qg6 {[%clk 0:00:31.9]} 20. Nc4 {[%clk 0:00:07.9]} 20... Bd3 {[%clk
0:00:29.3]} 0-1

[Event "*** SCC Grand Prix: Titled Tuesday Blitz"]
[Site "Chess.com"]
[Date "2020.07.14"]
[Round "6"]
[White "ENajer77"]
[Black "Mikasinski"]
[Result "1-0"]
[WhiteElo "2691"]
[BlackElo "2489"]
[TimeControl "180+1"]
[EndTime "11:06:22 PDT"]
[Termination "ENajer77 won by resignation"]

1. d4 {[%clk 0:03:00.9]} 1... Nf6 {[%clk 0:03:00]} 2. c4 {[%clk 0:03:00.8]} 2...
g6 {[%clk 0:03:00.2]} 3. Nc3 {[%clk 0:03:00.7]} 3... Bg7 {[%clk 0:03:00.9]} 4.
e4 {[%clk 0:03:00.9]} 4... d6 {[%clk 0:03:01.6]} 5. Be2 {[%clk 0:03:01.2]} 5...
O-O {[%clk 0:03:02.3]} 6. Be3 {[%clk 0:03:01.5]} 6... e5 {[%clk 0:02:53]} 7. d5
{[%clk 0:03:00.9]} 7... a5 {[%clk 0:02:44.5]} 8. g4 {[%clk 0:03:00.6]} 8... Na6
{[%clk 0:02:42.9]} 9. g5 {[%clk 0:03:00.8]} 9... Nd7 {[%clk 0:02:42.7]} 10. h4
{[%clk 0:03:01.4]} 10... f5 {[%clk 0:02:40.9]} 11. gxf6 {[%clk 0:03:01.9]} 11...
Nxf6 {[%clk 0:02:40.5]} 12. h5 {[%clk 0:03:02.3]} 12... Nc5 {[%clk 0:02:36.5]}
13. hxg6 {[%clk 0:03:02]} 13... hxg6 {[%clk 0:02:34.2]} 14. Bg5 {[%clk
0:02:48.7]} 14... c6 {[%clk 0:02:27.4]} 15. Qc2 {[%clk 0:02:30.3]} 15... Qb6
{[%clk 0:02:23.4]} 16. O-O-O {[%clk 0:02:27.5]} 16... cxd5 {[%clk 0:02:17.8]}
17. Bxf6 {[%clk 0:02:19.4]} 17... Bxf6 {[%clk 0:02:17.3]} 18. Nxd5 {[%clk
0:02:19.4]} 18... Bg5+ {[%clk 0:02:17.1]} 19. Kb1 {[%clk 0:02:17.6]} 19... Qd8
{[%clk 0:02:13.4]} 20. Nf3 {[%clk 0:02:16.1]} 20... Nxe4 {[%clk 0:02:03.8]} 21.
Bd3 {[%clk 0:02:02.3]} 21... Rxf3 {[%clk 0:02:01.6]} 22. Bxe4 {[%clk 0:02:01.2]}
22... Rf7 {[%clk 0:01:51.1]} 23. Bxg6 {[%clk 0:01:58.8]} 23... Rg7 {[%clk
0:01:50.6]} 24. f4 {[%clk 0:01:46.4]} 24... exf4 {[%clk 0:01:46]} 25. Qh2 {[%clk
0:01:39.8]} 25... Kf8 {[%clk 0:01:07.9]} 26. Nxf4 {[%clk 0:01:35.4]} 26... Qf6
{[%clk 0:00:55.1]} 27. Rdf1 {[%clk 0:01:21.1]} 27... Rxg6 {[%clk 0:00:42.5]} 28.
Nxg6+ {[%clk 0:01:18]} 28... Ke8 {[%clk 0:00:23.5]} 29. Rxf6 {[%clk 0:01:15.1]}
29... Bxf6 {[%clk 0:00:23.3]} 30. Qh5 {[%clk 0:01:11.6]} 30... Kd8 {[%clk
0:00:17.6]} 31. Rf1 {[%clk 0:01:09]} 31... Bd4 {[%clk 0:00:09.9]} 32. Qh7 {[%clk
0:01:02.3]} 32... Bd7 {[%clk 0:00:07.3]} 33. Rf8+ {[%clk 0:00:59.2]} 1-0

[Event "*** SCC Grand Prix: Titled Tuesday Blitz"]
[Site "Chess.com"]
[Date "2020.07.14"]
[Round "6"]
[White "TurboSteen"]
[Black "winniethepooh04"]
[Result "0-1"]
[WhiteElo "1942"]
[BlackElo "2175"]
[TimeControl "180+1"]
[EndTime "11:06:23 PDT"]
[Termination "winniethepooh04 won by checkmate"]

1. e4 {[%clk 0:02:57.4]} 1... c5 {[%clk 0:02:59.2]} 2. Nc3 {[%clk 0:02:55.6]}
2... Nc6 {[%clk 0:02:58.6]} 3. Bb5 {[%clk 0:02:53.8]} 3... d6 {[%clk 0:02:57.8]}
4. f4 {[%clk 0:02:49.2]} 4... a6 {[%clk 0:02:55.4]} 5. Bxc6+ {[%clk 0:02:47.5]}
5... bxc6 {[%clk 0:02:55.2]} 6. Nf3 {[%clk 0:02:47.9]} 6... g6 {[%clk
0:02:49.7]} 7. O-O {[%clk 0:02:46.7]} 7... Bg7 {[%clk 0:02:49.8]} 8. d3 {[%clk
0:02:45.5]} 8... Nf6 {[%clk 0:02:47.7]} 9. Qe1 {[%clk 0:02:44.9]} 9... O-O
{[%clk 0:02:47.5]} 10. Qh4 {[%clk 0:02:42.5]} 10... Rb8 {[%clk 0:02:25.1]} 11.
Rb1 {[%clk 0:02:36.3]} 11... Ng4 {[%clk 0:01:50.5]} 12. Bd2 {[%clk 0:02:27.4]}
12... d5 {[%clk 0:01:38]} 13. f5 {[%clk 0:02:24.2]} 13... dxe4 {[%clk
0:01:32.2]} 14. Nxe4 {[%clk 0:02:13.3]} 14... Bxf5 {[%clk 0:01:27.4]} 15. Nfg5
{[%clk 0:02:00]} 15... h6 {[%clk 0:01:13.6]} 16. Bc3 {[%clk 0:01:56.3]} 16...
Bxc3 {[%clk 0:00:56.8]} 17. bxc3 {[%clk 0:01:50.5]} 17... hxg5 {[%clk
0:00:42.2]} 18. Nxg5 {[%clk 0:01:47.8]} 18... Nf6 {[%clk 0:00:36.4]} 19. Rxb8
{[%clk 0:01:39.7]} 19... Qxb8 {[%clk 0:00:35.3]} 20. g4 {[%clk 0:01:39.7]} 20...
Bxg4 {[%clk 0:00:25.5]} 21. Rxf6 {[%clk 0:01:35.8]} 21... Bh5 {[%clk 0:00:19.3]}
22. Rf1 {[%clk 0:01:23.4]} 22... Qe5 {[%clk 0:00:17.5]} 23. c4 {[%clk
0:01:18.8]} 23... Qe3+ {[%clk 0:00:17.3]} 24. Kg2 {[%clk 0:01:03.2]} 24... Qe2+
{[%clk 0:00:17]} 25. Rf2 {[%clk 0:01:01.5]} 25... Qe5 {[%clk 0:00:16.5]} 26. Kg1
{[%clk 0:00:59.7]} 26... f6 {[%clk 0:00:16.7]} 27. Ne4 {[%clk 0:00:57.5]} 27...
f5 {[%clk 0:00:15]} 28. Ng5 {[%clk 0:00:53.5]} 28... f4 {[%clk 0:00:15]} 29. Kf1
{[%clk 0:00:49.1]} 29... f3 {[%clk 0:00:14.6]} 30. Ne4 {[%clk 0:00:41.9]} 30...
Qa1# {[%clk 0:00:12.5]} 0-1

[Event "*** SCC Grand Prix: Titled Tuesday Blitz"]
[Site "Chess.com"]
[Date "2020.07.14"]
[Round "6"]
[White "dosto07"]
[Black "Ave_Mariia"]
[Result "1-0"]
[WhiteElo "2231"]
[BlackElo "2369"]
[TimeControl "180+1"]
[EndTime "11:06:24 PDT"]
[Termination "dosto07 won on time"]

1. d4 {[%clk 0:03:00.9]} 1... Nf6 {[%clk 0:02:59.5]} 2. Nf3 {[%clk 0:02:59.9]}
2... g6 {[%clk 0:02:59.1]} 3. Bf4 {[%clk 0:02:55.1]} 3... Bg7 {[%clk 0:02:59.1]}
4. h3 {[%clk 0:02:55]} 4... d6 {[%clk 0:02:58.2]} 5. e3 {[%clk 0:02:51.4]} 5...
O-O {[%clk 0:02:43.2]} 6. Be2 {[%clk 0:02:50.9]} 6... b6 {[%clk 0:02:33.8]} 7.
O-O {[%clk 0:02:49.3]} 7... Bb7 {[%clk 0:02:34.1]} 8. a4 {[%clk 0:02:41.8]} 8...
Nc6 {[%clk 0:02:25.7]} 9. Nbd2 {[%clk 0:02:27.1]} 9... e5 {[%clk 0:02:11.8]} 10.
dxe5 {[%clk 0:02:22.7]} 10... dxe5 {[%clk 0:02:07.3]} 11. Nxe5 {[%clk
0:01:58.2]} 11... Nd5 {[%clk 0:02:04.4]} 12. Nxc6 {[%clk 0:01:55.3]} 12... Bxc6
{[%clk 0:02:04.1]} 13. c3 {[%clk 0:01:46.3]} 13... Nxf4 {[%clk 0:01:52]} 14.
exf4 {[%clk 0:01:46]} 14... Qf6 {[%clk 0:01:37.9]} 15. Bf3 {[%clk 0:01:41.1]}
15... Rad8 {[%clk 0:01:26.4]} 16. Bxc6 {[%clk 0:01:37.3]} 16... Qxc6 {[%clk
0:01:26.1]} 17. Qf3 {[%clk 0:01:34.8]} 17... Qc5 {[%clk 0:00:59.5]} 18. Ne4
{[%clk 0:01:23.7]} 18... Qc4 {[%clk 0:00:47.1]} 19. f5 {[%clk 0:01:15.1]} 19...
gxf5 {[%clk 0:00:19.5]} 20. Qxf5 {[%clk 0:01:13.1]} 20... Qc6 {[%clk 0:00:06.4]}
21. Rfe1 {[%clk 0:01:09.1]} 21... Rfe8 {[%clk 0:00:04.8]} 22. Ng5 {[%clk
0:00:54.7]} 22... Qg6 {[%clk 0:00:05]} 23. Rxe8+ {[%clk 0:00:46.9]} 23... Rxe8
{[%clk 0:00:05]} 24. Qd7 {[%clk 0:00:45.2]} 24... Re2 {[%clk 0:00:02.2]} 25. h4
{[%clk 0:00:38.1]} 25... h6 {[%clk 0:00:02.2]} 26. Nf3 {[%clk 0:00:34.5]} 1-0

[Event "*** SCC Grand Prix: Titled Tuesday Blitz"]
[Site "Chess.com"]
[Date "2020.07.14"]
[Round "6"]
[White "Fortitudine"]
[Black "bratkoo"]
[Result "0-1"]
[WhiteElo "2287"]
[BlackElo "2467"]
[TimeControl "180+1"]
[EndTime "11:06:27 PDT"]
[Termination "bratkoo won by resignation"]

1. d4 {[%clk 0:03:00.9]} 1... e6 {[%clk 0:03:00.1]} 2. Nc3 {[%clk 0:02:57.4]}
2... d5 {[%clk 0:02:59.2]} 3. e4 {[%clk 0:02:57.9]} 3... Nf6 {[%clk 0:02:58.5]}
4. Bg5 {[%clk 0:02:57.4]} 4... Be7 {[%clk 0:02:58.3]} 5. Bxf6 {[%clk 0:02:57.6]}
5... Bxf6 {[%clk 0:02:57.8]} 6. Nf3 {[%clk 0:02:58.1]} 6... O-O {[%clk
0:02:56.8]} 7. Qd2 {[%clk 0:02:57.8]} 7... Be7 {[%clk 0:02:43.7]} 8. O-O-O
{[%clk 0:02:55.8]} 8... a6 {[%clk 0:02:32.7]} 9. Bd3 {[%clk 0:02:50.8]} 9... b5
{[%clk 0:02:32.7]} 10. exd5 {[%clk 0:02:20.7]} 10... exd5 {[%clk 0:02:32.2]} 11.
Ne5 {[%clk 0:02:14.1]} 11... b4 {[%clk 0:02:30.7]} 12. Ne2 {[%clk 0:02:10.9]}
12... c5 {[%clk 0:02:23.7]} 13. dxc5 {[%clk 0:02:03.9]} 13... Bxc5 {[%clk
0:02:24.2]} 14. Ng3 {[%clk 0:01:54.4]} 14... Nd7 {[%clk 0:02:18.4]} 15. Nxd7
{[%clk 0:01:47.6]} 15... Bxd7 {[%clk 0:02:18.5]} 16. Rhe1 {[%clk 0:01:44.7]}
16... a5 {[%clk 0:02:15]} 17. Kb1 {[%clk 0:01:34.8]} 17... a4 {[%clk 0:02:15.2]}
18. Nf5 {[%clk 0:01:22.4]} 18... a3 {[%clk 0:02:12.6]} 19. Ne3 {[%clk
0:00:57.3]} 19... axb2 {[%clk 0:02:09.4]} 20. Nxd5 {[%clk 0:00:57.2]} 20... Rxa2
{[%clk 0:01:31.8]} 21. Bc4 {[%clk 0:00:44.8]} 21... Ra3 {[%clk 0:00:54.4]} 22.
Kxb2 {[%clk 0:00:37.9]} 22... Be6 {[%clk 0:00:52.8]} 23. Rxe6 {[%clk 0:00:11.1]}
23... fxe6 {[%clk 0:00:52.5]} 24. Nxb4 {[%clk 0:00:07.8]} 24... Qxd2 {[%clk
0:00:46.6]} 25. Bxe6+ {[%clk 0:00:08.1]} 25... Kh8 {[%clk 0:00:46.5]} 26. Rxd2
{[%clk 0:00:07.9]} 26... Bxb4 {[%clk 0:00:46.8]} 27. Rd4 {[%clk 0:00:05.7]}
27... Bc3+ {[%clk 0:00:47]} 28. Kxa3 {[%clk 0:00:06.2]} 28... Bxd4 {[%clk
0:00:47.9]} 0-1